[Event "23rd Hoogeveen Open 2019"]
[Site "Hoogeveen"]
[Date "2019.10.21"]
[Round "4.18"]
[White "De Boer, Eelke"]
[Black "Takawira, Erick"]
[Result "0-1"]
[ECO "C77"]
[WhiteElo "2323"]
[BlackElo "2101"]
[Annotator "NA"]
[PlyCount "88"]
[EventDate "2019.10.19"]
[EventType "swiss"]
[EventCountry "NED"]
[SourceTitle "playchess.com"]
[Source "ChessBase"]
[SourceQuality "1"]
[TimeControl "40/5400+30:1800+30"]

1. e4 {[%emt 0:00:00]} e5 {[%emt 0:00:00]} 2. Nf3 {[%emt 0:00:30]} Nc6 {[%emt 0:00:30]} 3. Bb5 {[%emt 0:00:30]} a6 {[%emt 0:00:30]} 4. Ba4 {[%emt 0:00:30]} Nf6 {[%emt 0:00:30]} 5. O-O {[%emt 0:00:30]} Be7 {[%emt 0:00:30]} 6. d3 {[%emt 0:00:30]} b5 {[%emt 0:00:30]} 7. Bb3 {[%emt 0:00:30]} d6 {[%emt 0:00:30]} 8. a3 {[%emt 0:00:30]} O-O {[%emt 0:00:30]} 9. Nc3 {[%emt 0:00:30]} Be6 {[%emt 0:00:30]} 10. Bxe6 {[%emt 0:00:30]} fxe6 {[%emt 0:00:30]} 11. Re1 {[%emt 0:00:30]} Qe8 {[%emt 0:00:30]} 12. Ne2 {[%emt 0:00:30]} Nh5 {[%emt 0:00:30]} 13. Ng3 {[%emt 0:00:30]} Nxg3 {[%emt 0:00:30]} 14. hxg3 {[%emt 0:00:30]} Nd4 {[%emt 0:00:30]} 15. Nxd4 {[%emt 0:00:30]} exd4 {[%emt 0:00:30]} 16. f4 {[%emt 0:00:30]} Qg6 {[%emt 0:00:30]} 17. g4 {[%emt 0:19:47]} Bh4 {[%emt 0:18:17]} 18. Rf1 {[%emt 0:00:30]} e5 {[%emt 0:00:30]} 19. f5 {[%emt 0:00:30]} Qf6 {[%emt 0:00:30]} 20. Qd2 {[%emt 0:12:37]} h6 {[%emt 0:00:17]} 21. a4 {[%emt 0:01:41]} c5 {[%emt 0:03:05]} 22. Qa5 {[%emt 0:00:30]} b4 {[%emt 0:00:30]} 23. c3 {[%emt 0:00:30]} Qf7 {[%emt 0:00:30]} 24. g5 {[%emt 0:00:30]} dxc3 {[%emt 0:00:30]} 25. bxc3 {[%emt 0:00:30]} Qh5 {[%emt 0:00:30]} 26. Be3 {[%emt 0:00:30]} Bg3 {[%emt 0:00:30]} 27. Rf3 {[%emt 0:00:30]} Qh2+ {[%emt 0:00:30]} 28. Kf1 {[%emt 0:00:30]} hxg5 {[%emt 0:00:30]} 29. Bg1 {[%emt 0:00:30]} Qh4 {[%emt 0:00:30]} 30. cxb4 {[%emt 0:00:30]} g4 {[%emt 0:00:30]} 31. Re3 {[%emt 0:00:30]} Bf4 {[%emt 0:00:30]} 32. Re2 {[%emt 0:00:30]} cxb4 {[%emt 0:00:30]} 33. Qxb4 {[%emt 0:00:30]} Qh6 {[%emt 0:00:30]} 34. Qc4+ {[%emt 0:00:30]} Kh7 {[%emt 0:00:30]} 35. Rc2 {[%emt 1:24:45]} g3 {[%emt 0:45:02]} 36. Re1 {[%emt 0:00:00]} Bd2 {[%emt 0:00:30]} 37. Rd1 {[%emt 0:00:00]} Qf4+ {[%emt 0:00:30]} 38. Ke2 {[%emt 0:00:00]} Ba5 {[%emt 0:00:30]} 39. Rf1 {[%emt 0:00:00]} Qg4+ {[%emt 0:00:30]} 40. Rf3 {[%emt 0:00:00]} Rab8 {[%emt 0:00:30]} 41. Be3 {[%emt 0:00:00]} Rb1 {[%emt 0:30:30]} 42. Bc1 {[%emt 0:00:00]} Qh5 {[%emt 0:00:30]} 43. Bd2 {[%emt 0:00:00]} Rg1 {[%emt 0:00:30]} 44. Bxa5 {[%emt 0:00:00]} Rxg2+ {[%emt 0:00:30]} 0-1

[Event "23rd Hoogeveen Open 2019"]
[Site "Hoogeveen"]
[Date "2019.10.21"]
[Round "4.20"]
[White "Garcia Morales, Ivette Ale"]
[Black "Advait, Bagri"]
[Result "1/2-1/2"]
[ECO "D15"]
[WhiteElo "2013"]
[BlackElo "2231"]
[Annotator "NA"]
[PlyCount "47"]
[EventDate "2019.10.19"]
[EventType "swiss"]
[EventCountry "NED"]
[SourceTitle "playchess.com"]
[Source "ChessBase"]
[SourceQuality "1"]
[TimeControl "40/5400+30:1800+30"]

1. d4 {[%emt 0:01:25]} d5 {[%emt 0:00:38]} 2. c4 {[%emt 0:00:05]} c6 {[%emt 0:00:06]} 3. Nc3 {[%emt 0:00:06]} Nf6 {[%emt 0:00:33]} 4. Nf3 {[%emt 0:00:08]} a6 {[%emt 0:00:07]} 5. a4 {[%emt 0:01:06]} e6 {[%emt 0:01:14]} 6. g3 {[%emt 0:00:19]} Be7 {[%emt 0:08:29]} 7. Bg2 {[%emt 0:00:05]} O-O {[%emt 0:00:12]} 8. Qc2 {[%emt 0:05:19]} a5 {[%emt 0:02:00]} 9. O-O {[%emt 0:08:15]} Na6 {[%emt 0:00:38]} 10. e4 {[%emt 0:02:31]} Nb4 {[%emt 0:02:37]} 11. Qe2 {[%emt 0:00:38]} dxc4 {[%emt 0:05:13]} 12. Rd1 {[%emt 0:06:17]} b6 {[%emt 0:03:16]} 13. Ne5 {[%emt 0:07:12]} Ba6 {[%emt 0:04:58]} 14. Nxc4 {[%emt 0:09:19]} Bxc4 {[%emt 0:16:45]} 15. Qxc4 {[%emt 0:00:16]} Qc8 {[%emt 0:00:27]} 16. Bg5 {[%emt 0:02:09]} Ra7 {[%emt 0:12:04]} 17. Rac1 {[%emt 0:05:53]} Qd7 {[%emt 0:06:06]} 18. Na2 {[%emt 0:09:59]} Nxa2 {[%emt 0:03:54]} 19. Qxa2 {[%emt 0:00:12]} Rc8 {[%emt 0:00:38]} 20. Qb3 {[%emt 0:04:49]} Rb7 {[%emt 0:01:50]} 21. Bxf6 {[%emt 0:03:19]} Bxf6 {[%emt 0:01:15]} 22. e5 {[%emt 0:00:17]} Be7 {[%emt 0:00:50]} 23. Qc4 {[%emt 0:03:20]} Rbc7 {[%emt 0:00:50]} 24. Qa6 {[%emt 0:02:26]} 1/2-1/2

[Event "23rd Hoogeveen Open 2019"]
[Site "Hoogeveen"]
[Date "2019.10.21"]
[Round "4.21"]
[White "Hilwerda, Jonas"]
[Black "Dev, Shah"]
[Result "1/2-1/2"]
[ECO "C58"]
[WhiteElo "2229"]
[BlackElo "2025"]
[Annotator "NA"]
[PlyCount "75"]
[EventDate "2019.10.19"]
[EventType "swiss"]
[EventCountry "NED"]
[SourceTitle "playchess.com"]
[Source "ChessBase"]
[SourceQuality "1"]
[TimeControl "40/5400+30:1800+30"]

1. e4 {[%emt 0:00:00]} e5 {[%emt 0:00:08]} 2. Nf3 {[%emt 0:00:00]} Nc6 {[%emt 0:00:11]} 3. Bc4 {[%emt 0:00:00]} Nf6 {[%emt 0:00:10]} 4. Ng5 {[%emt 0:00:00]} d5 {[%emt 0:00:14]} 5. exd5 {[%emt 0:00:00]} Na5 {[%emt 0:00:14]} 6. Bb5+ {[%emt 0:00:00]} c6 {[%emt 0:00:05]} 7. dxc6 {[%emt 0:00:00]} bxc6 {[%emt 0:00:02]} 8. Bd3 {[%emt 0:00:00]} Nd5 {[%emt 0:00:28]} 9. h4 {[%emt 0:00:00]} Be7 {[%emt 0:06:56]} 10. Qf3 {[%emt 0:00:00]} Bxg5 {[%emt 0:04:21]} 11. hxg5 {[%emt 0:00:00]} Qxg5 {[%emt 0:03:22]} 12. Rh5 {[%emt 0:00:24]} Qf4 {[%emt 0:23:15]} 13. Qxf4 {[%emt 0:23:51]} exf4 {[%emt 0:00:11]} 14. b4 {[%emt 0:02:17]} Nb7 {[%emt 0:01:15]} 15. b5 {[%emt 0:00:11]} Nb4 {[%emt 0:06:51]} 16. Be4 {[%emt 0:22:34]} f5 {[%emt 0:02:01]} 17. Bxc6+ {[%emt 0:00:47]} Nxc6 {[%emt 0:01:27]} 18. bxc6 {[%emt 0:00:02]} Nd8 {[%emt 0:04:33]} 19. c7 {[%emt 0:03:10]} Nc6 {[%emt 0:00:42]} 20. f3 {[%emt 0:12:39]} Nd4 {[%emt 0:06:34]} 21. Kd1 {[%emt 0:07:17]} Bb7 {[%emt 0:08:10]} 22. Rh2 {[%emt 0:02:17]} O-O {[%emt 0:01:17]} 23. Bb2 {[%emt 0:02:10]} Ne6 {[%emt 0:02:29]} 24. Be5 {[%emt 0:01:46]} Rac8 {[%emt 0:02:18]} 25. Nc3 {[%emt 0:01:41]} Nxc7 {[%emt 0:01:37]} 26. Rb1 {[%emt 0:00:13]} Ba8 {[%emt 0:01:29]} 27. Bxf4 {[%emt 0:01:10]} Nd5 {[%emt 0:00:09]} 28. Nxd5 {[%emt 0:03:12]} Bxd5 {[%emt 0:00:17]} 29. Be5 {[%emt 0:02:23]} Rfe8 {[%emt 0:02:05]} 30. d4 {[%emt 0:01:07]} Re6 {[%emt 0:03:51]} 31. Rb2 {[%emt 0:04:35]} Ra6 {[%emt 0:01:33]} 32. Kd2 {[%emt 0:00:11]} Rxa2 {[%emt 0:01:13]} 33. Rxa2 {[%emt 0:00:20]} Bxa2 {[%emt 0:00:02]} 34. Rh1 {[%emt 0:00:31]} a6 {[%emt 0:00:28]} 35. Ra1 {[%emt 0:02:08]} Bc4 {[%emt 0:00:02]} 36. Rb1 {[%emt 0:00:02]} Bb5 {[%emt 0:00:23]} 37. f4 {[%emt 0:08:46]} g6 {[%emt 0:01:14]} 38. g3 {[%emt 0:01:20]} 1/2-1/2

[Event "23rd Hoogeveen Open 2019"]
[Site "Hoogeveen"]
[Date "2019.10.21"]
[Round "4.22"]
[White "Mueer, Sebastian"]
[Black "De Winter, Arthur"]
[Result "1/2-1/2"]
[ECO "E90"]
[WhiteElo "2194"]
[BlackElo "1896"]
[Annotator "NA"]
[PlyCount "91"]
[EventDate "2019.10.19"]
[EventType "swiss"]
[EventCountry "NED"]
[SourceTitle "playchess.com"]
[Source "ChessBase"]
[SourceQuality "1"]
[TimeControl "40/5400+30:1800+30"]

1. d4 {[%emt 0:03:36]} Nf6 {[%emt 0:00:00]} 2. Nf3 {[%emt 0:00:09]} g6 {[%emt 0:00:00]} 3. c4 {[%emt 0:00:05]} Bg7 {[%emt 0:00:05]} 4. Nc3 {[%emt 0:00:06]} O-O {[%emt 0:00:12]} 5. e4 {[%emt 0:00:06]} d6 {[%emt 0:00:19]} 6. h3 {[%emt 0:00:07]} e5 {[%emt 0:01:34]} 7. d5 {[%emt 0:00:11]} a5 {[%emt 0:01:09]} 8. Be3 {[%emt 0:00:08]} Na6 {[%emt 0:02:08]} 9. g4 {[%emt 0:00:09]} Ne8 {[%emt 0:02:53]} 10. Rg1 {[%emt 0:04:30]} Kh8 {[%emt 0:05:17]} 11. a3 {[%emt 0:06:08]} Nc5 {[%emt 0:04:10]} 12. Qc2 {[%emt 0:30:10]} f5 {[%emt 0:03:36]} 13. gxf5 {[%emt 0:04:16]} gxf5 {[%emt 0:00:08]} 14. O-O-O {[%emt 0:01:39]} fxe4 {[%emt 0:09:18]} 15. Ng5 {[%emt 0:02:21]} Nf6 {[%emt 0:02:08]} 16. Kb1 {[%emt 0:08:46]} Bf5 {[%emt 0:08:22]} 17. f3 {[%emt 0:06:00]} Qe7 {[%emt 0:05:50]} 18. fxe4 {[%emt 0:01:52]} Bg6 {[%emt 0:01:32]} 19. Be2 {[%emt 0:02:55]} c6 {[%emt 0:10:30]} 20. h4 {[%emt 0:10:14]} cxd5 {[%emt 0:02:11]} 21. Bxc5 {[%emt 0:00:52]} d4 {[%emt 0:01:43]} 22. Bxd6 {[%emt 0:03:47]} Qxd6 {[%emt 0:00:07]} 23. Nb5 {[%emt 0:00:06]} Qc6 {[%emt 0:01:14]} 24. Bd3 {[%emt 0:00:20]} Rae8 {[%emt 0:03:45]} 25. Rdf1 {[%emt 0:02:21]} Nh5 {[%emt 0:00:59]} 26. Rxf8+ {[%emt 0:00:17]} Rxf8 {[%emt 0:00:08]} 27. c5 {[%emt 0:05:20]} Nf4 {[%emt 0:00:51]} 28. Nd6 {[%emt 0:00:17]} Nxd3 {[%emt 0:00:56]} 29. Qxd3 {[%emt 0:00:02]} Qxc5 {[%emt 0:00:10]} 30. Nf5 {[%emt 0:03:12]} Bxf5 {[%emt 0:00:45]} 31. exf5 {[%emt 0:00:01]} e4 {[%emt 0:00:17]} 32. Nxe4 {[%emt 0:01:32]} Qxf5 {[%emt 0:00:14]} 33. Rg5 {[%emt 0:02:36]} Qf4 {[%emt 0:03:05]} 34. Rh5 {[%emt 0:01:36]} Qf1+ {[%emt 0:01:03]} 35. Qxf1 {[%emt 0:00:01]} Rxf1+ {[%emt 0:00:07]} 36. Kc2 {[%emt 0:00:16]} b6 {[%emt 0:01:28]} 37. Rb5 {[%emt 0:00:50]} h6 {[%emt 0:01:21]} 38. Nd6 {[%emt 0:01:17]} d3+ {[%emt 0:01:20]} 39. Kd2 {[%emt 0:00:41]} Rf2+ {[%emt 0:00:50]} 40. Kxd3 {[%emt 0:00:32]} Rxb2 {[%emt 0:00:09]} 41. Rxb2 {[%emt 0:03:03]} Bxb2 {[%emt 0:00:07]} 42. Nc4 {[%emt 0:00:38]} Bf6 {[%emt 0:00:19]} 43. Nxb6 {[%emt 0:00:53]} Bxh4 {[%emt 0:00:10]} 44. Nc4 {[%emt 0:00:11]} Be7 {[%emt 0:00:47]} 45. Nxa5 {[%emt 0:00:20]} Bxa3 {[%emt 0:00:05]} 46. Ke4 {[%emt 0:00:13]} 1/2-1/2

[Event "23rd Hoogeveen Open 2019"]
[Site "Hoogeveen"]
[Date "2019.10.21"]
[Round "4.23"]
[White "Slagboom, Leandro"]
[Black "Adocchio, Giampiero"]
[Result "0-1"]
[ECO "A14"]
[WhiteElo "1954"]
[BlackElo "2184"]
[Annotator "NA"]
[PlyCount "116"]
[EventDate "2019.10.19"]
[EventType "swiss"]
[EventCountry "NED"]
[SourceTitle "playchess.com"]
[Source "ChessBase"]
[SourceQuality "1"]
[TimeControl "40/5400+30:1800+30"]

1. Nf3 {[%emt 0:00:00]} d5 {[%emt 0:00:00]} 2. c4 {[%emt 0:00:00]} e6 {[%emt 0:00:14]} 3. g3 {[%emt 0:00:00]} Nf6 {[%emt 0:00:06]} 4. Bg2 {[%emt 0:00:00]} Be7 {[%emt 0:00:01]} 5. O-O {[%emt 0:00:00]} O-O {[%emt 0:00:04]} 6. b3 {[%emt 0:00:07]} c5 {[%emt 0:00:14]} 7. Bb2 {[%emt 0:00:30]} b6 {[%emt 0:00:07]} 8. e3 {[%emt 0:03:07]} Nc6 {[%emt 0:02:32]} 9. Qe2 {[%emt 0:01:57]} Ba6 {[%emt 0:01:25]} 10. d3 {[%emt 0:01:16]} Qc7 {[%emt 0:00:51]} 11. Nc3 {[%emt 0:02:41]} Rad8 {[%emt 0:01:02]} 12. Rad1 {[%emt 0:03:06]} Rfe8 {[%emt 0:04:20]} 13. Rfe1 {[%emt 0:01:36]} Bf8 {[%emt 0:01:31]} 14. Qc2 {[%emt 0:09:14]} Rd7 {[%emt 0:11:21]} 15. a3 {[%emt 0:05:39]} d4 {[%emt 0:01:34]} 16. exd4 {[%emt 0:00:33]} cxd4 {[%emt 0:00:06]} 17. Nb5 {[%emt 0:03:56]} Qd8 {[%emt 0:01:11]} 18. Ne5 {[%emt 0:01:47]} Nxe5 {[%emt 0:00:09]} 19. Rxe5 {[%emt 0:00:16]} Qb8 {[%emt 0:02:32]} 20. Ree1 {[%emt 0:04:00]} Bxb5 {[%emt 0:04:27]} 21. cxb5 {[%emt 0:01:19]} Rc8 {[%emt 0:00:43]} 22. Qe2 {[%emt 0:03:53]} Nd5 {[%emt 0:06:39]} 23. Bxd4 {[%emt 0:10:39]} Nf4 {[%emt 0:00:47]} 24. gxf4 {[%emt 0:00:55]} Rxd4 {[%emt 0:00:05]} 25. Qe5 {[%emt 0:00:28]} Rxf4 {[%emt 0:01:17]} 26. Qxb8 {[%emt 0:00:11]} Rxb8 {[%emt 0:00:05]} 27. b4 {[%emt 0:00:43]} Rd4 {[%emt 0:00:35]} 28. Re4 {[%emt 0:01:14]} Rd5 {[%emt 0:01:28]} 29. a4 {[%emt 0:06:55]} Rbd8 {[%emt 0:00:07]} 30. Rc4 {[%emt 0:05:15]} Rxd3 {[%emt 0:00:38]} 31. Rxd3 {[%emt 0:00:30]} Rxd3 {[%emt 0:00:05]} 32. Rc7 {[%emt 0:00:51]} Bxb4 {[%emt 0:00:36]} 33. Rxa7 {[%emt 0:00:37]} g6 {[%emt 0:00:54]} 34. Bc6 {[%emt 0:02:37]} Bc5 {[%emt 0:01:46]} 35. Be8 {[%emt 0:07:54]} Rf3 {[%emt 0:01:25]} 36. Rc7 {[%emt 0:00:55]} Bxf2+ {[%emt 0:04:21]} 37. Kg2 {[%emt 0:00:10]} Rf5 {[%emt 0:00:38]} 38. Bxf7+ {[%emt 0:01:52]} Rxf7 {[%emt 0:00:05]} 39. Rxf7 {[%emt 0:00:06]} Kxf7 {[%emt 0:00:02]} 40. Kxf2 {[%emt 0:00:06]} Ke7 {[%emt 0:00:04]} 41. Ke3 {[%emt 0:30:22]} Kd6 {[%emt 0:30:08]} 42. Kd4 {[%emt 0:00:50]} g5 {[%emt 0:00:54]} 43. Ke4 {[%emt 0:00:47]} Kc5 {[%emt 0:04:03]} 44. Ke5 {[%emt 0:00:07]} Kb4 {[%emt 0:00:04]} 45. Kxe6 {[%emt 0:00:09]} Kxa4 {[%emt 0:00:06]} 46. Kf5 {[%emt 0:00:07]} Kxb5 {[%emt 0:00:04]} 47. Kxg5 {[%emt 0:00:04]} Kc4 {[%emt 0:00:24]} 48. Kh6 {[%emt 0:00:11]} b5 {[%emt 0:00:04]} 49. Kxh7 {[%emt 0:00:06]} b4 {[%emt 0:00:04]} 50. Kg7 {[%emt 0:00:20]} b3 {[%emt 0:00:04]} 51. h4 {[%emt 0:00:07]} b2 {[%emt 0:00:05]} 52. h5 {[%emt 0:00:05]} b1=Q {[%emt 0:00:05]} 53. h6 {[%emt 0:00:07]} Qg1+ {[%emt 0:00:14]} 54. Kh8 {[%emt 0:00:20]} Qf2 {[%emt 0:01:11]} 55. Kg8 {[%emt 0:02:45]} Qg3+ {[%emt 0:00:12]} 56. Kf7 {[%emt 0:00:59]} Qf4+ {[%emt 0:00:24]} 57. Kg6 {[%emt 0:00:19]} Qg4+ {[%emt 0:00:06]} 58. Kf7 {[%emt 0:00:13]} Qh5+ {[%emt 0:00:07]} 0-1

[Event "23rd Hoogeveen Open 2019"]
[Site "Hoogeveen"]
[Date "2019.10.21"]
[Round "4.24"]
[White "Fehr, Axel"]
[Black "Grooten, Herman"]
[Result "0-1"]
[ECO "A34"]
[WhiteElo "2045"]
[BlackElo "2274"]
[Annotator "NA"]
[PlyCount "84"]
[EventDate "2019.10.19"]
[EventType "swiss"]
[EventCountry "NED"]
[SourceTitle "playchess.com"]
[Source "ChessBase"]
[SourceQuality "1"]
[TimeControl "40/5400+30:1800+30"]

1. e4 {[%emt 0:00:00]} c5 {[%emt 0:00:00]} 2. Nf3 {[%emt 0:00:00]} e6 {[%emt 0:00:00]} 3. c4 {[%emt 0:00:10]} b6 {[%emt 0:01:53]} 4. Nc3 {[%emt 0:02:11]} Bb7 {[%emt 0:00:39]} 5. g3 {[%emt 0:03:17]} g6 {[%emt 0:00:50]} 6. Bg2 {[%emt 0:01:47]} Bg7 {[%emt 0:00:46]} 7. d4 {[%emt 0:05:32]} cxd4 {[%emt 0:02:26]} 8. Nxd4 {[%emt 0:00:23]} a6 {[%emt 0:02:32]} 9. O-O {[%emt 0:03:50]} Ne7 {[%emt 0:01:34]} 10. Be3 {[%emt 0:08:05]} d6 {[%emt 0:01:30]} 11. Qe2 {[%emt 0:01:34]} Nd7 {[%emt 0:01:55]} 12. Rfd1 {[%emt 0:03:58]} O-O {[%emt 0:05:33]} 13. Rac1 {[%emt 0:01:09]} Qb8 {[%emt 0:04:41]} 14. Bg5 {[%emt 0:11:16]} Re8 {[%emt 0:00:58]} 15. Bh3 {[%emt 0:03:37]} Nc6 {[%emt 0:10:07]} 16. Be3 {[%emt 0:04:21]} Nf6 {[%emt 0:02:10]} 17. Bg2 {[%emt 0:10:07]} Ne5 {[%emt 0:02:18]} 18. h3 {[%emt 0:06:40]} Qc7 {[%emt 0:03:41]} 19. b3 {[%emt 0:01:59]} Rad8 {[%emt 0:03:47]} 20. f4 {[%emt 0:02:11]} Ned7 {[%emt 0:02:19]} 21. Ndb5 {[%emt 0:11:22]} axb5 {[%emt 0:01:20]} 22. Nxb5 {[%emt 0:00:08]} Qb8 {[%emt 0:00:40]} 23. Nxd6 {[%emt 0:00:10]} e5 {[%emt 0:00:40]} 24. Nxe8 {[%emt 0:05:45]} Rxe8 {[%emt 0:00:15]} 25. f5 {[%emt 0:02:32]} gxf5 {[%emt 0:01:44]} 26. exf5 {[%emt 0:00:29]} e4 {[%emt 0:02:30]} 27. Bf4 {[%emt 0:00:49]} Ne5 {[%emt 0:03:18]} 28. Kh1 {[%emt 0:03:09]} h5 {[%emt 0:02:54]} 29. Qe3 {[%emt 0:02:57]} Bf8 {[%emt 0:01:50]} 30. Bh6 {[%emt 0:01:28]} Nh7 {[%emt 0:15:22]} 31. Bxf8 {[%emt 0:00:23]} Rxf8 {[%emt 0:01:47]} 32. f6 {[%emt 0:01:49]} Nf3 {[%emt 0:04:31]} 33. Bxf3 {[%emt 0:01:00]} exf3 {[%emt 0:00:15]} 34. Rd5 {[%emt 0:01:36]} Bxd5 {[%emt 0:01:08]} 35. cxd5 {[%emt 0:00:08]} Re8 {[%emt 0:03:03]} 36. Qxf3 {[%emt 0:00:30]} Qe5 {[%emt 0:01:25]} 37. Rf1 {[%emt 0:00:49]} Rd8 {[%emt 0:00:00]} 38. d6 {[%emt 0:00:25]} Rxd6 {[%emt 0:00:15]} 39. Qa8+ {[%emt 0:00:22]} Nf8 {[%emt 0:00:05]} 40. Rc1 {[%emt 0:00:58]} Rxf6 {[%emt 0:00:27]} 41. Qg2 {[%emt 0:01:39]} Ne6 {[%emt 0:01:00]} 42. Qd2 {[%emt 0:00:30]} Nd4 {[%emt 0:00:44]} 0-1

[Event "23rd Hoogeveen Open 2019"]
[Site "Hoogeveen"]
[Date "2019.10.21"]
[Round "4.25"]
[White "Barthel, Ansgar"]
[Black "Noordenbos, Daan"]
[Result "1-0"]
[ECO "C01"]
[WhiteElo "2037"]
[BlackElo "2133"]
[Annotator "NA"]
[PlyCount "109"]
[EventDate "2019.10.19"]
[EventType "swiss"]
[EventCountry "NED"]
[SourceTitle "playchess.com"]
[Source "ChessBase"]
[SourceQuality "1"]
[TimeControl "40/5400+30:1800+30"]

1. e4 {[%emt 0:00:00]} e6 {[%emt 0:00:00]} 2. d4 {[%emt 0:00:00]} d5 {[%emt 0:00:00]} 3. Nc3 {[%emt 0:00:00]} Bb4 {[%emt 0:00:00]} 4. exd5 {[%emt 0:00:00]} exd5 {[%emt 0:00:00]} 5. Bd3 {[%emt 0:00:00]} Ne7 {[%emt 0:00:11]} 6. Qh5 {[%emt 0:00:23]} Qd6 {[%emt 0:04:40]} 7. Nge2 {[%emt 0:01:57]} Be6 {[%emt 0:05:43]} 8. O-O {[%emt 0:02:39]} Nbc6 {[%emt 0:02:32]} 9. Na4 {[%emt 0:10:08]} Qd7 {[%emt 0:01:09]} 10. a3 {[%emt 0:06:32]} Bd6 {[%emt 0:00:24]} 11. Nc5 {[%emt 0:00:34]} Bxc5 {[%emt 0:03:57]} 12. dxc5 {[%emt 0:00:06]} O-O-O {[%emt 0:03:47]} 13. b4 {[%emt 0:04:07]} f6 {[%emt 0:02:39]} 14. Bb2 {[%emt 0:04:39]} Ng6 {[%emt 0:02:20]} 15. Ng3 {[%emt 0:12:16]} Nf4 {[%emt 0:03:20]} 16. Qf3 {[%emt 0:02:59]} Nxd3 {[%emt 0:02:09]} 17. Qxd3 {[%emt 0:01:17]} Ne5 {[%emt 0:01:06]} 18. Qe2 {[%emt 0:06:21]} Nc4 {[%emt 0:00:30]} 19. Bd4 {[%emt 0:00:18]} h5 {[%emt 0:00:57]} 20. Rfe1 {[%emt 0:02:16]} Rde8 {[%emt 0:02:26]} 21. Nf1 {[%emt 0:01:49]} Bf5 {[%emt 0:03:01]} 22. Ne3 {[%emt 0:01:15]} Nxe3 {[%emt 0:04:17]} 23. fxe3 {[%emt 0:00:13]} Re4 {[%emt 0:00:44]} 24. Qf2 {[%emt 0:04:01]} h4 {[%emt 0:00:50]} 25. c6 {[%emt 0:00:32]} bxc6 {[%emt 0:00:18]} 26. Bxa7 {[%emt 0:00:09]} Rh6 {[%emt 0:01:44]} 27. Rf1 {[%emt 0:06:12]} Bg4 {[%emt 0:01:23]} 28. Bc5 {[%emt 0:03:20]} Rg6 {[%emt 0:03:30]} 29. Kh1 {[%emt 0:10:29]} h3 {[%emt 0:03:06]} 30. gxh3 {[%emt 0:01:58]} Bxh3 {[%emt 0:00:52]} 31. Rg1 {[%emt 0:00:04]} Reg4 {[%emt 0:01:01]} 32. Rg3 {[%emt 0:01:59]} Qe6 {[%emt 0:01:42]} 33. Rxh3 {[%emt 0:01:29]} d4 {[%emt 0:03:48]} 34. Rf3 {[%emt 0:04:17]} dxe3 {[%emt 0:01:58]} 35. Rxe3 {[%emt 0:01:32]} Qc4 {[%emt 0:01:17]} 36. Rae1 {[%emt 0:01:43]} Rg2 {[%emt 0:00:25]} 37. Qxg2 {[%emt 0:01:01]} Rxg2 {[%emt 0:00:02]} 38. Kxg2 {[%emt 0:00:05]} Qxc2+ {[%emt 0:00:11]} 39. R1e2 {[%emt 0:00:08]} Qg6+ {[%emt 0:00:12]} 40. Rg3 {[%emt 0:00:31]} Qh5 {[%emt 0:00:11]} 41. Rd2 {[%emt 0:33:52]} Qh6 {[%emt 0:30:34]} 42. Be3 {[%emt 0:00:32]} Qh7 {[%emt 0:00:04]} 43. Rg4 {[%emt 0:04:46]} Qg8 {[%emt 0:01:18]} 44. Rgd4 {[%emt 0:01:31]} Qe6 {[%emt 0:00:26]} 45. Bf4 {[%emt 0:00:23]} Qg4+ {[%emt 0:00:08]} 46. Bg3 {[%emt 0:00:09]} Qf5 {[%emt 0:00:07]} 47. h3 {[%emt 0:00:00]} Kb7 {[%emt 0:00:00]} 48. Rd7 {[%emt 0:00:00]} Qg5 {[%emt 0:00:00]} 49. Kh2 {[%emt 0:00:00]} f5 {[%emt 0:00:00]} 50. Rxc7+ {[%emt 0:00:00]} Kb6 {[%emt 0:00:00]} 51. Rcd7 {[%emt 0:00:00]} f4 {[%emt 0:00:00]} 52. Bf2+ {[%emt 0:00:00]} Kb5 {[%emt 0:00:00]} 53. R2d3 {[%emt 0:00:00]} Kc4 {[%emt 0:00:00]} 54. R7d4+ {[%emt 0:00:00]} Kb5 {[%emt 0:00:26]} 55. Rf3 {[%emt 0:00:00]} 1-0

[Event "23rd Hoogeveen Open 2019"]
[Site "Hoogeveen"]
[Date "2019.10.21"]
[Round "4.26"]
[White "Emans, Job"]
[Black "Van der Velde, Henk"]
[Result "1-0"]
[ECO "D19"]
[WhiteElo "2028"]
[BlackElo "2118"]
[Annotator "NA"]
[PlyCount "105"]
[EventDate "2019.10.19"]
[EventType "swiss"]
[EventCountry "NED"]
[SourceTitle "playchess.com"]
[Source "ChessBase"]
[SourceQuality "1"]
[TimeControl "40/5400+30:1800+30"]

1. d4 {[%emt 0:00:00]} d5 {[%emt 0:00:00]} 2. c4 {[%emt 0:00:00]} c6 {[%emt 0:00:00]} 3. Nc3 {[%emt 0:00:10]} Nf6 {[%emt 0:00:08]} 4. Nf3 {[%emt 0:00:10]} dxc4 {[%emt 0:00:14]} 5. a4 {[%emt 0:00:16]} Bf5 {[%emt 0:00:13]} 6. e3 {[%emt 0:00:20]} e6 {[%emt 0:00:18]} 7. Bxc4 {[%emt 0:00:25]} Bb4 {[%emt 0:00:19]} 8. O-O {[%emt 0:00:40]} Nbd7 {[%emt 0:00:13]} 9. Qe2 {[%emt 0:08:00]} Bg6 {[%emt 0:00:55]} 10. Rd1 {[%emt 0:01:21]} O-O {[%emt 0:02:05]} 11. Ne1 {[%emt 0:07:18]} Qe7 {[%emt 0:13:12]} 12. Nd3 {[%emt 0:08:52]} Bd6 {[%emt 0:06:41]} 13. e4 {[%emt 0:05:00]} e5 {[%emt 0:03:13]} 14. dxe5 {[%emt 0:09:24]} Nxe5 {[%emt 0:00:20]} 15. Nxe5 {[%emt 0:01:31]} Bxe5 {[%emt 0:00:42]} 16. f3 {[%emt 0:00:56]} Rfe8 {[%emt 0:19:18]} 17. Be3 {[%emt 0:05:05]} h5 {[%emt 0:18:16]} 18. a5 {[%emt 0:12:17]} h4 {[%emt 0:08:38]} 19. Na4 {[%emt 0:10:27]} Qc7 {[%emt 0:04:13]} 20. h3 {[%emt 0:01:57]} Nh5 {[%emt 0:01:47]} 21. Bf2 {[%emt 0:03:45]} Bh2+ {[%emt 0:01:56]} 22. Kh1 {[%emt 0:01:32]} Ng3+ {[%emt 0:00:14]} 23. Bxg3 {[%emt 0:00:06]} Bxg3 {[%emt 0:00:04]} 24. Nc3 {[%emt 0:05:45]} Qe7 {[%emt 0:02:48]} 25. Rf1 {[%emt 0:04:31]} Qg5 {[%emt 0:02:02]} 26. f4 {[%emt 0:05:20]} Bxf4 {[%emt 0:06:54]} 27. Qf3 {[%emt 0:00:41]} Be5 {[%emt 0:00:22]} 28. Bxf7+ {[%emt 0:00:35]} Bxf7 {[%emt 0:00:07]} 29. Qxf7+ {[%emt 0:00:04]} Kh7 {[%emt 0:02:09]} 30. Rf5 {[%emt 0:00:29]} Re7 {[%emt 0:01:57]} 31. Rxg5 {[%emt 0:00:42]} Rxf7 {[%emt 0:00:03]} 32. Rxe5 {[%emt 0:00:06]} Rf2 {[%emt 0:00:20]} 33. Rh5+ {[%emt 0:02:40]} Kg6 {[%emt 0:00:04]} 34. Rxh4 {[%emt 0:00:06]} Rxb2 {[%emt 0:00:06]} 35. Rf1 {[%emt 0:02:03]} Rc2 {[%emt 0:00:47]} 36. Rg4+ {[%emt 0:00:11]} Kh7 {[%emt 0:00:02]} 37. Rf3 {[%emt 0:00:43]} b5 {[%emt 0:00:43]} 38. axb6 {[%emt 0:00:31]} axb6 {[%emt 0:00:01]} 39. e5 {[%emt 0:01:38]} Re8 {[%emt 0:01:15]} 40. Re4 {[%emt 0:01:28]} Re6 {[%emt 0:00:43]} 41. Ne2 {[%emt 0:30:42]} Rc5 {[%emt 0:33:07]} 42. Rfe3 {[%emt 0:01:43]} b5 {[%emt 0:00:20]} 43. Nf4 {[%emt 0:01:23]} Re7 {[%emt 0:00:37]} 44. e6 {[%emt 0:00:00]} g5 {[%emt 0:00:00]} 45. Ne2 {[%emt 0:00:00]} Kg6 {[%emt 0:00:00]} 46. g4 {[%emt 0:00:00]} Kf6 {[%emt 0:00:00]} 47. Ng3 {[%emt 0:00:00]} Rc4 {[%emt 0:00:00]} 48. Rf3+ {[%emt 0:00:00]} Kg6 {[%emt 0:00:00]} 49. Re1 {[%emt 0:00:00]} Ra4 {[%emt 0:00:00]} 50. Nf5 {[%emt 0:00:00]} Re8 {[%emt 0:00:00]} 51. e7 {[%emt 0:00:00]} Ra7 {[%emt 0:00:00]} 52. Rfe3 {[%emt 0:00:00]} Kf6 {[%emt 0:00:00]} 53. Re6+ {[%emt 0:00:00]} 1-0